[Event "Frauenbundesliga 2021-22"]
[Site "Germany"]
[Date "2022.05.26"]
[Round "3.25"]
[White "Unuk, Laura"]
[Black "Osmak, Yuliia"]
[Result "1-0"]
[ECO "D27"]
[WhiteElo "2338"]
[BlackElo "2428"]
[Annotator "TA"]
[PlyCount "125"]
[EventDate "2021.11.26"]
[EventType "team-tourn"]
[EventCountry "GER"]
[SourceTitle "playchess.com"]
[Source "ChessBase"]
[SourceQuality "1"]
[WhiteTeam "Harksheide"]
[BlackTeam "Bad Koenigshofen"]
[TimeControl "40/5400+30:1800+30"]

{[%evp 12,125,31,18,24,25,20,29,22,35,24,0,0,-4,-4,-15,-5,-11,-8,-16,0,-13,-4,-10,0,-6,0,-6,-8,-8,-8,-8,-8,-1,-12,-16,0,0,13,16,133,138,158,29,52,40,137,135,197,170,166,0,181,0,160,154,212,207,220,208,219,209,785,786,29980,29981,29980,364,355,363,347,312,305,232,225,156,413,395,374,357,483,468,541,531,863,795,1475,1362,1435,1397,691,351,2253,1821,29977,29978,29979,29980,29980,29981,29981,29981,29981,29982,29982,29983,29983,29984,29984,29982,29988,29989,29989,29989,29990,29991]} 1. d4 {[%emt 0:00:04]} d5 {[%emt 0:00:07]} 2. Nf3 {[%emt 0:00:25]} Nf6 {[%emt 0:00:09]} 3. c4 {[%emt 0:03:13]} dxc4 {[%emt 0:00:15]} 4. e3 {[%emt 0:05:32]} e6 {[%emt 0:00:16]} 5. Bxc4 {[%emt 0:00:04]} a6 {[%emt 0:00:16]} 6. O-O {[%emt 0:00:37]} c5 {[%emt 0:00:15]} 7. b3 {[%emt 0:00:17]} b6 {[%emt 0:06:00] D27: Queen's Gambit Accepted: Classical main line: 7 e4!? and 7 a4.} 8. Ba3 {[%emt 0:18:35]} cxd4 {[%emt 0:03:35]} 9. Bxf8 {[%emt 0:00:16]} Kxf8 {[%emt 0:00:03] White has an edge.} 10. Nxd4 {[%emt 0:02:13]} Qe7 {[%emt 0:07:56]} 11. Nc3 {[%emt 0:02:42]} Bb7 {[%emt 0:07:33] [#]} 12. Rc1 $146 {[%emt 0:01:16]} ({Predecessor:} 12. Be2 Nbd7 13. Bf3 Ne5 14. Bxb7 Qxb7 15. Nxe6+ fxe6 16. Qd6+ Kf7 17. Qxe5 Rac8 18. Rac1 {1-0 (40) Studer,N (2579)-Osmak,I (2428) Chess.com INT 2021}) 12... g6 {[%emt 0:04:59]} 13. Be2 {[%emt 0:11:32]} e5 {[%emt 0:04:08]} 14. Nf3 {[%emt 0:01:05]} Kg7 {[%emt 0:09:02]} 15. Qc2 {[%emt 0:05:47]} Nbd7 {[%emt 0:01:36]} 16. Rfd1 {[%emt 0:02:24]} Rac8 {[%emt 0:03:27]} 17. Qb2 {[%emt 0:11:26]} Rhe8 {[%emt 0:05:48]} 18. Nd2 {[%emt 0:03:43]} b5 {[%emt 0:07:12] Against Nc4} 19. Bf3 {[%emt 0:00:33]} Nc5 {[%emt 0:03:36] ...Nd3 is the strong threat.} 20. Bxb7 {[%emt 0:02:55]} Qxb7 {[%emt 0:00:08]} 21. Nf3 {[%emt 0:00:52]} b4 {[%emt 0:02:27]} 22. Na4 {[%emt 0:03:19]} (22. Ne2 {with more complications.} Qb5 23. Nxe5 Rxe5 24. Qxe5 Qxe2 25. Qa1) 22... Nxa4 {[%emt 0:04:32]} 23. bxa4 {[%emt 0:00:06]} Rxc1 {[%emt 0:00:28]} 24. Rxc1 {[%emt 0:00:38][%cal Bd1c1,Bc1c6,Bc6a6,Ba6a5][%mdl 32]} Qe7 {[%emt 0:00:23]} 25. a5 {[%emt 0:03:14]} e4 {[%emt 0:13:21]} (25... Nd5 $11) 26. Nd4 $16 {[%emt 0:01:51]} Qe5 {[%emt 0:00:23] [#]} 27. h3 {[%emt 0:02:45]} (27. Rc6 $1 $16) 27... Qxa5 $11 {[%emt 0:07:51]} 28. Rc6 {[%emt 0:00:41][%cal Oc6f6]} Qe5 {[%emt 0:02:22]} (28... Re5 $14) 29. Rxa6 $16 {[%emt 0:01:20]} ({Resist} 29. Qxb4 Rb8 30. Qe1 Nd5 $14) 29... Nd7 {[%emt 0:01:17] [#]} (29... Qc5 $16) 30. Ra5 $3 {[%emt 0:02:22][%mdl 512]} Qf6 {[%emt 0:00:16]} 31. Ra6 {[%emt 0:01:16]} Qe5 {[%emt 0:00:10]} 32. Ra5 {[%emt 0:00:28]} Qf6 {[%emt 0:00:04]} 33. Qxb4 {[%emt 0:02:44] White is more active.} Ne5 {[%emt 0:03:21]} (33... Rc8 $16 34. Qb2 Kg8) 34. Qb5 $18 {[%emt 0:03:32]} Re7 {[%emt 0:00:03]} 35. Ra6 {[%emt 0:00:28]} Qg5 {[%emt 0:00:34]} 36. Qb2 {[%emt 0:00:18]} Kh6 $2 {[%emt 0:01:21]} (36... Rd7 37. g3 Kh6) 37. Qb8 {[%emt 0:05:31][%cal Oh3h4] Hoping for h4!} Nf3+ {[%emt 0:02:57]} 38. Nxf3 {[%emt 0:01:29]} exf3 {[%emt 0:00:02] KQR-KQR} 39. g4 $2 {[%emt 0:00:20]} (39. Qf8+ {mates} Kh5 40. g4+ Kh4 {[#]} 41. Ra5 $3 {[%mdl 512]} Rxe3 42. Rxg5 Re1+ 43. Kh2 Kxg5 44. Qd8+ Kf4 45. Qd2+ Ke5 46. Qxe1+ Kd5 47. Qb4) 39... Qc5 {[%emt 0:01:08]} 40. Qf4+ {[%emt 0:01:40]} Qg5 {[%emt 0:00:31]} 41. Qxf3 {[%emt 0:01:00]} Kg7 {[%emt 0:00:32]} 42. Qc6 {[%emt 0:05:18]} Qe5 {[%emt 0:08:03]} 43. Qd6 {[%emt 0:21:33]} Qa1+ {[%emt 0:12:44] Black cannot hold the game after this.} (43... Qxd6 $16 {is a better defense.} 44. Rxd6 Ra7) 44. Kg2 {[%emt 0:00:08]} Re6 {[%emt 0:00:11]} 45. Qd3 {[%emt 0:00:20] And now Rxe6 would win.} Rxa6 {[%emt 0:00:20]} 46. Qxa6 {[%emt 0:00:03] KQ-KQ} Qe5 {[%emt 0:00:20]} 47. Qc4 {[%emt 0:00:21] Inhibits Qe4+.} f6 {[%emt 0:00:35]} 48. a4 {[%emt 0:00:53] Strongly threatening Qb5.} h5 {[%emt 0:00:04]} 49. Qd4 {[%emt 0:01:23] Qxe5 would kill now.} Qa5 {[%emt 0:01:12]} 50. Qd7+ {[%emt 0:01:29]} Kh6 {[%emt 0:00:06]} 51. Qc6 {[%emt 0:00:34]} Qe5 $2 {[%emt 0:01:56]} (51... hxg4 52. hxg4 f5 53. gxf5 Qxf5) 52. Qa8 {[%emt 0:00:15] White threatens Qh8+ and mate.} f5 {[%emt 0:01:13]} 53. g5+ {[%emt 0:00:27] White mates.} Kh7 {[%emt 0:00:14]} 54. a5 {[%emt 0:01:42]} f4 {[%emt 0:00:09]} 55. exf4 {[%emt 0:00:52]} Qxf4 {[%emt 0:00:17]} 56. Qb7+ {[%emt 0:00:20]} Kh8 {[%emt 0:00:39]} 57. Qc8+ {[%emt 0:00:23]} Kh7 {[%emt 0:00:31]} 58. Qd7+ {[%emt 0:00:03]} Kh8 {[%emt 0:00:09]} 59. Qd8+ {[%emt 0:00:53]} Kh7 {[%emt 0:00:03]} 60. Qd5 {[%emt 0:00:04]} h4 {[%emt 0:01:28]} 61. a6 {[%emt 0:00:18][%cal Ba5a6,Ba6a7][%mdl 32]} Qa4 {[%emt 0:03:01]} 62. Qb7+ {[%emt 0:00:20]} Kh8 {[%emt 0:00:04]} 63. a7 {[%emt 0:00:16] Weighted Error Value: White=0.35/Black=0.47} 1-0

[Event "Frauenbundesliga 2021-22"]
[Site "Germany"]
[Date "2022.05.26"]
[Round "3.26"]
[White "Melamed, Tatjana"]
[Black "Antolak, Julia"]
[Result "0-1"]
[ECO "B18"]
[WhiteElo "2353"]
[BlackElo "2371"]
[Annotator "TA"]
[PlyCount "82"]
[EventDate "2021.11.26"]
[EventType "team-tourn"]
[EventCountry "GER"]
[SourceTitle "playchess.com"]
[Source "ChessBase"]
[SourceQuality "1"]
[WhiteTeam "Bad Koenigshofen"]
[BlackTeam "Harksheide"]
[TimeControl "40/5400+30:1800+30"]

{[%evp 14,82,7,6,8,3,21,0,0,0,-5,-7,0,0,6,0,0,-11,15,-14,-16,-9,24,18,28,25,20,20,27,26,26,22,25,-31,-36,-34,-36,-31,-8,-6,35,0,0,0,0,-32,-37,-35,-37,-177,-102,-142,-140,-194,-112,-328,-318,-314,-318,-307,-300,-454,-441,-1463,-1407,-1293,-781,-757,-3,-29987,-29988]} 1. e4 {[%emt 0:00:06]} c6 {[%emt 0:00:07]} 2. d4 {[%emt 0:00:19]} d5 {[%emt 0:00:06]} 3. Nc3 {[%emt 0:00:26]} dxe4 {[%emt 0:00:15]} 4. Nxe4 {[%emt 0:00:03]} Bf5 {[%emt 0:00:10]} 5. Ng3 {[%emt 0:00:24]} Bg6 {[%emt 0:00:05]} 6. Nf3 {[%emt 0:03:07]} e6 {[%emt 0:03:04]} 7. Bc4 {[%emt 0:06:39]} Nd7 {[%emt 0:03:55] 7...Nd7 scores better than 7...Nf6.} 8. O-O {[%emt 0:00:16]} Bd6 {[%emt 0:02:23] B18: Classical Caro-Kann: 4...Bf5 sidelines.} 9. Re1 {[%emt 0:00:33]} Qc7 {[%emt 0:03:23]} 10. c3 {[%emt 0:24:23]} Ngf6 {[%emt 0:03:35][%cal Bg8f6,Bf6d7,Bd7e5][%mdl 32] The position is equal.} 11. Qe2 {[%emt 0:05:15]} O-O {[%emt 0:06:20]} 12. Ne5 {[%emt 0:04:38]} c5 {[%emt 0:05:22]} 13. Nxg6 {[%emt 0:04:27]} hxg6 {[%emt 0:00:24]} 14. dxc5 {[%emt 0:00:19]} Nxc5 {[%emt 0:04:27] [#]} 15. Qf3 $146 {[%emt 0:07:05]} ({Predecessor:} 15. Be3 Rac8 16. Rad1 a6 17. a3 b5 18. Ba2 Rfd8 19. Bd4 Rd7 20. c4 Rcd8 21. Bxc5 Bxc5 22. Rxd7 Rxd7 {1-0 (32) Kahrovic,M (2308)-Keca,D (2188) Serbia 2013}) 15... Nfd7 {[%emt 0:07:46]} 16. Be3 {[%emt 0:16:48]} Ne5 {[%emt 0:19:04][%csl LRc4,LRf3]} 17. Qe2 {[%emt 0:00:09]} Ncd7 {[%emt 0:01:55] Pair of Knights!} 18. Bb3 {[%emt 0:01:46]} Nf6 {[%emt 0:00:59] Prevents Ne4.} 19. h3 {[%emt 0:05:19]} Nc6 {[%emt 0:02:42]} 20. Nf1 {[%emt 0:04:01]} Rfe8 {[%emt 0:04:55]} 21. Rad1 {[%emt 0:07:54]} a6 {[%emt 0:03:18]} 22. Bg5 {[%emt 0:01:05]} (22. Nd2 $5 {[%cal Rd2c4]}) 22... Bf4 {[%emt 0:01:30]} 23. Bxf6 {[%emt 0:01:16]} (23. h4 $11) 23... gxf6 $15 {[%emt 0:00:07]} 24. h4 {[%emt 0:00:59]} Kg7 {[%emt 0:02:32]} 25. g3 {[%emt 0:00:54]} Be5 {[%emt 0:00:50]} 26. h5 {[%emt 0:00:41]} g5 {[%emt 0:01:20]} 27. Kg2 {[%emt 0:00:52]} (27. Ne3 $5 {[%cal Rg1g2]}) 27... f5 {[%emt 0:01:39]} 28. Ne3 {[%emt 0:00:30]} Bf6 {[%emt 0:02:17]} 29. Bc2 {[%emt 0:01:19][%cal Oh5h6]} Ne5 {[%emt 0:02:49] ...Qc6+ is the strong threat.} 30. f3 $1 {[%emt 0:00:34]} Qc6 {[%emt 0:01:48] Threatens to win with ...g4.} 31. Kf2 {[%emt 0:00:16]} (31. g4 $1 $15) 31... Rac8 {[%emt 0:01:14]} (31... Qb6 $19 32. f4 gxf4 33. gxf4 Ng4+ 34. Kf1 Nxe3+ 35. Qxe3 Qxb2) 32. h6+ {[%emt 0:00:40]} Kh8 {[%emt 0:01:21]} 33. g4 {[%emt 0:01:39]} (33. Rd2 $17) 33... Rg8 {[%emt 0:03:04]} (33... f4 $19 {Strongly threatening ...Qb6.} 34. Nf1 Qb6+ 35. Kg2 Qxb2) 34. Rg1 $2 {[%emt 0:00:54]} ({But not} 34. gxf5 $2 g4 35. Nxg4 Bh4+ 36. Kf1 Nxg4 $19) (34. Rd2 $17) 34... f4 $19 {[%emt 0:00:45]} 35. Nf1 {[%emt 0:00:09]} Qb6+ {[%emt 0:00:28]} 36. Kg2 {[%emt 0:00:19]} Qxb2 {[%emt 0:00:34] Dancing on a razor blade.} 37. Qe4 {[%emt 0:01:29]} (37. Rd2 {was called for.} Rxc3 38. Be4) 37... Rg6 {[%emt 0:00:11]} 38. Nd2 {[%emt 0:01:15]} (38. Rd2 $142 Rxh6 39. Bb3) 38... Rxc3 {[%emt 0:02:50]} 39. Rc1 {[%emt 0:00:30]} Re3 {[%emt 0:00:33]} 40. Nc4 {[%emt 0:00:35] [#]} Qc3 $2 {[%emt 0:05:45]} ({Better is} 40... Qb4 $1 $19 41. a3 {[#]} Qb5 $1) 41. Nxe3 {[%emt 0:12:18][%mdl 8192]} (41. Qxe3 $11 fxe3 42. Bxg6) 41... Qd2+ {[%emt 0:00:25] Weighted Error Value: White=0.51/Black=0.50} 0-1

[Event "Frauenbundesliga 2021-22"]
[Site "Germany"]
[Date "2022.05.26"]
[Round "3.27"]
[White "Radikovic, Anamarija"]
[Black "Savina, Anastasia"]
[Result "0-1"]
[ECO "B08"]
[WhiteElo "2133"]
[BlackElo "2348"]
[Annotator "TA"]
[PlyCount "48"]
[EventDate "2021.11.26"]
[EventType "team-tourn"]
[EventCountry "GER"]
[SourceTitle "playchess.com"]
[Source "ChessBase"]
[SourceQuality "1"]
[WhiteTeam "Harksheide"]
[BlackTeam "Bad Koenigshofen"]
[TimeControl "40/5400+30:1800+30"]

{[%evp 13,48,25,34,15,17,0,23,-27,-6,-10,-10,-20,-17,-133,-135,-125,-122,-270,-261,-267,-271,-262,-254,-303,-284,-318,-325,-556,-540,-560,-547,-525,-527,-729,-587,-560,-522]} 1. e4 {[%emt 0:00:02]} Nc6 {[%emt 0:00:24]} 2. Nf3 {[%emt 0:01:00]} d6 {[%emt 0:01:09]} 3. h3 {[%emt 0:04:56]} Nf6 {[%emt 0:02:22]} 4. Nc3 {[%emt 0:00:07]} g6 {[%emt 0:00:38]} 5. d4 {[%emt 0:03:14][%cal Bd2d4,Bd4d5][%mdl 32]} Bg7 {[%emt 0:00:51]} 6. Be3 {[%emt 0:02:52]} O-O {[%emt 0:06:20]} 7. Qd2 {[%emt 0:00:04]} e5 {[%emt 0:00:20]} 8. d5 {[%emt 0:04:37] B08: Pirc Defence: Classical System.} Ne7 {[%emt 0:04:20]} 9. Bh6 {[%emt 0:00:10]} a6 {[%emt 0:08:01]} 10. g4 {[%emt 0:27:27]} ({White should play} 10. a3) 10... b5 $11 {[%emt 0:03:19]} 11. Bd3 {[%emt 0:00:05] [#]} b4 $146 {[%emt 0:27:21]} ({Predecessor:} 11... c5 12. dxc6 Nxc6 13. Bxg7 Kxg7 14. O-O-O Be6 15. Ng5 Qe7 16. Nxe6+ Qxe6 17. Kb1 Rfd8 {1-0 (46) Riazantsev,A (2638)-Klenburg,M (2346) Chess.com INT 2020}) 12. Ne2 {[%emt 0:00:05]} c6 {[%emt 0:00:11][%cal Bc7c6,Bc6d5][%mdl 32]} 13. Ng3 {[%emt 0:05:48]} (13. dxc6 $11 Nxc6 14. O-O) 13... cxd5 $17 {[%emt 0:10:16]} 14. Bxg7 {[%emt 0:03:10]} Kxg7 {[%emt 0:00:28]} 15. g5 {[%emt 0:00:05]} (15. Qxb4 $17 a5 16. Qa3) 15... Nxe4 $19 {[%emt 0:02:23]} 16. Bxe4 {[%emt 0:01:40]} dxe4 {[%emt 0:00:07]} 17. Nxe4 {[%emt 0:00:38]} Bb7 {[%emt 0:13:12][%cal Bc8b7,Bb7d5,Bd5e4][%mdl 32]} 18. Qxb4 {[%emt 0:00:20]} Rb8 {[%emt 0:01:17]} 19. O-O-O {[%emt 0:07:11]} Bd5 {[%emt 0:06:06] The board is on fire.} 20. Qc3 {[%emt 0:05:02]} (20. Qa4 Qc7 21. Nfd2) 20... Bxe4 {[%emt 0:04:43] Black is clearly winning.} 21. Nxe5 {[%emt 0:00:06] Hoping for Ng4+.} Nd5 {[%emt 0:05:43]} 22. Rxd5 {[%emt 0:03:22]} Qxg5+ {[%emt 0:00:06][%mdl 64] [#] Pin, Double Attack} ({Less strong is} 22... Bxh1 23. Nc6+ Kg8 24. Nxd8 Bxd5 25. Nc6 $16) 23. Kb1 {[%emt 0:14:12]} dxe5 {[%emt 0:00:37]} 24. Rxe5 {[%emt 0:00:38]} Qf6 {[%emt 0:00:41] Black took control after the opening.  Weighted Error Value: White=0.65/Black=0.10 (very precise)} 0-1

[Event "Frauenbundesliga 2021-22"]
[Site "Germany"]
[Date "2022.05.26"]
[Round "3.28"]
[White "Belenkaya, Dina"]
[Black "Adamowicz, Katarzyna"]
[Result "1-0"]
[ECO "C45"]
[WhiteElo "2254"]
[BlackElo "2108"]
[Annotator "TA"]
[PlyCount "165"]
[EventDate "2021.11.26"]
[EventType "team-tourn"]
[EventCountry "GER"]
[SourceTitle "playchess.com"]
[Source "ChessBase"]
[SourceQuality "1"]
[WhiteTeam "Bad Koenigshofen"]
[BlackTeam "Harksheide"]
[TimeControl "40/5400+30:1800+30"]

{[%evp 15,165,-20,-20,-21,-15,-111,-119,-105,-19,-130,-127,-127,-14,-15,39,31,39,41,28,41,39,27,63,48,58,0,0,0,8,0,165,100,143,127,143,21,165,65,65,0,0,0,0,0,0,0,0,-4,0,-94,0,3,2,0,0,0,0,-3,0,0,0,0,0,0,0,0,0,-3,-3,-3,-3,-3,0,0,0,0,0,0,0,0,0,0,0,0,8,0,0,0,0,0,0,0,0,0,0,0,0,0,8,0,29960,29961,6877,344,29967,29968,29968,29969,29969,8,29970,8,29974,29975,29977,29978,29978,29974,29974,29975,29975,29976,29976,29976,29976,29977,29978,29979,29979,29978,29978,29979,29979,29979,29979,29978,29978,29979,29978,29980,29982,29983,29983,29984,29985,29986,29988,29989,29989,29990,29990,29991]} 1. e4 {[%emt 0:00:02]} e5 {[%emt 0:00:08]} 2. Nf3 {[%emt 0:00:05]} Nc6 {[%emt 0:00:16]} 3. d4 {[%emt 0:00:12]} exd4 {[%emt 0:00:06]} 4. Nxd4 {[%emt 0:00:01]} Nf6 {[%emt 0:00:28][%cal Bg8f6,Bf6d5,Bd5b4][%mdl 32]} 5. Nxc6 {[%emt 0:00:13]} bxc6 {[%emt 0:00:16]} 6. Nd2 {[%emt 0:00:26]} g6 {[%emt 0:03:04]} 7. e5 {[%emt 0:05:54]} Qe7 {[%emt 0:01:14]} 8. Qe2 {[%emt 0:01:25]} Nd5 {[%emt 0:00:18]} 9. Ne4 {[%emt 1:26:42] Bg5 is the strong threat. C45: Scotch Game.} Bg7 {[%emt 0:04:11]} 10. f4 {[%emt 0:00:00]} (10. c4 $11 f5 11. exf6 (11. cxd5 fxe4 12. dxc6 Bxe5 $15) 11... Nxf6 12. Nxf6+ Bxf6 13. Qxe7+ Kxe7 14. Bd3) 10... O-O $1 $17 {[%emt 0:06:24]} 11. c4 {[%emt 0:00:00] Black is better.} Ba6 {[%emt 0:02:03]} (11... Nb6 $17 {Hoping for ...d5.} 12. Be3 Re8) 12. Qc2 {[%emt 0:00:00]} (12. Qd2 $1 $11 Nb6 13. c5 Bxf1 14. cxb6) 12... Nb4 $1 {[%emt 0:23:17] [#]} 13. Qc3 $146 {[%emt 0:00:00]} ({Predecessor:} 13. Qa4 c5 14. a3 Bb7 15. Nxc5 Qxc5 16. axb4 Qd4 17. Qd1 Qe4+ 18. Qe2 f6 19. Qxe4 Bxe4 {1-0 (36) Perez Mitjans,O (2414)-Ruiz Font,E (2063) Torredembarra 2014}) 13... d5 {[%emt 0:06:32]} (13... c5 $1 $17 {aiming for ...f5.} 14. a3 Nc6) 14. a3 $11 {[%emt 0:00:00]} dxe4 {[%emt 0:02:04]} (14... Na2 $11 15. Rxa2 dxe4) 15. axb4 $14 {[%emt 0:00:00]} Bc8 {[%emt 0:00:46]} 16. Be3 {[%emt 0:00:00] Inhibits c5. Strongly threatening Bc5.} Rd8 {[%emt 0:00:42]} 17. Bc5 $36 {[%emt 0:00:00][%mdl 2048] White has the initiative.} Qh4+ {[%emt 0:03:19]} 18. g3 {[%emt 0:00:00]} Qh5 {[%emt 0:02:05]} 19. h3 {[%emt 0:00:00]} Bg4 {[%emt 0:20:44] Inhibits Be2.} 20. Rh2 {[%emt 0:00:00]} (20. Bg2 $14 Bf3 21. Bxf3 exf3 22. g4 (22. Kf2 Qf5 $14) 22... Qh4+ 23. Bf2) 20... Bf3 $11 {[%emt 0:04:14]} 21. Rd2 {[%emt 0:00:00]} Qf5 {[%emt 0:08:39]} 22. Rxa7 {[%emt 0:00:00][%cal Oc3d4]} Qc8 $2 {[%emt 0:01:20]} (22... Re8 $11) 23. Ra5 {[%emt 0:00:00]} (23. Rxd8+ $18 Qxd8 24. Qd2) 23... Bf8 {[%emt 0:03:09]} 24. Bxf8 {[%emt 0:00:00]} Rxf8 {[%emt 0:01:21]} 25. Qd4 {[%emt 0:00:00]} ({Better is} 25. Rxa8 $1 $16 Qxa8 26. Kf2) 25... Qb7 {[%emt 0:01:28]} (25... Rb8 $11) 26. Qc5 {[%emt 0:00:00]} (26. Rxa8 $1 $18 Rxa8 27. c5) 26... Rad8 $14 {[%emt 0:00:47]} 27. Ra7 {[%emt 0:00:00]} (27. Rxd8 $1 $14 Rxd8 28. e6) 27... Qc8 $1 $11 {[%emt 0:00:16]} 28. Rxd8 {[%emt 0:00:07] The board is on fire.} (28. Qxc6 $2 Rxd2 29. Kxd2 e3+ 30. Kxe3 Bxc6 $19) 28... Qxd8 {[%emt 0:00:05]} (28... Rxd8 $5 29. Ra1 Qd7 $11) 29. Ra1 {[%emt 0:01:21] Prevents Qd1+. Active counter play!} Qd7 {[%emt 0:00:05]} 30. Qe3 {[%emt 0:01:35]} Rd8 {[%emt 0:00:05][%cal Bf8d8,Bd8d4,Bd4b4][%mdl 32]} 31. Qc3 {[%emt 0:04:26]} h5 {[%emt 0:01:46][%cal Og6g5]} 32. c5 {[%emt 0:01:20]} (32. Kf2 $11 {remains equal.}) 32... Qd4 {[%emt 0:01:48]} ({Black should try} 32... Qf5 $1 $17 {[%cal Oh5h4] White must now prevent ...h4!} 33. e6 (33. Kf2 $2 g5 $19) 33... Qxe6) 33. Qxd4 {[%emt 0:01:03]} Rxd4 {[%emt 0:00:04][%mdl 4096] Endgame KRB-KRB} 34. b3 {[%emt 0:00:58] Threatens to win with Kf2.} e3 {[%emt 0:01:30]} 35. Be2 {[%emt 0:00:17]} Bd5 {[%emt 0:00:27]} 36. Rc1 {[%emt 0:01:03]} Rxb4 {[%emt 0:00:46]} 37. Bc4 {[%emt 0:00:37]} Bxc4 {[%emt 0:01:30]} 38. bxc4 {[%emt 0:00:11] KR-KR} Rb3 {[%emt 0:00:54]} 39. Ke2 {[%emt 0:00:13]} Kf8 {[%emt 0:00:07]} 40. Rd1 {[%emt 0:01:30]} Rc3 {[%emt 0:00:26]} 41. Rd4 {[%emt 0:01:51]} Ke7 {[%emt 0:04:32]} 42. g4 {[%emt 0:01:06]} Ke6 {[%emt 0:03:25]} 43. Re4 {[%emt 0:05:54]} h4 {[%emt 0:01:35]} 44. Rd4 {[%emt 0:01:20]} g5 {[%emt 0:04:34]} 45. fxg5 {[%emt 0:10:37]} Kxe5 {[%emt 0:00:13]} 46. Rd7 {[%emt 0:00:27][%csl LRc7,LRf7]} Kf4 {[%emt 0:04:11]} 47. Rxf7+ {[%emt 0:00:40]} Kxg5 {[%emt 0:00:04]} 48. Rf5+ {[%emt 0:04:05]} Kg6 {[%emt 0:00:05]} 49. Rh5 {[%emt 0:02:11]} (49. Re5 $5 {[%cal Re5e6]}) 49... Rc2+ {[%emt 0:08:52]} 50. Kxe3 {[%emt 0:00:05] And now Kd4 would win.} Rc3+ {[%emt 0:00:03]} 51. Kf4 {[%emt 0:00:52]} Rxh3 {[%emt 0:00:14]} 52. Re5 {[%emt 0:00:23]} Rc3 {[%emt 0:01:07]} 53. Re6+ {[%emt 0:00:48]} Kf7 {[%emt 0:00:04]} 54. Rxc6 {[%emt 0:00:14]} Rxc4+ {[%emt 0:01:25]} 55. Kf5 {[%emt 0:00:20]} h3 {[%emt 0:02:43]} 56. Rxc7+ {[%emt 0:00:01]} Kg8 {[%emt 0:00:02]} 57. g5 {[%emt 0:01:46] Threatening mate with Kg6.} Rh4 $2 {[%emt 0:03:01][%mdl 8192] Black is now going downhill.} (57... h2 $11 58. Kg6 (58. Rc8+ Kg7 $11) 58... Kf8 59. Rf7+ (59. Rh7 Rc2 $11) 59... Kg8) 58. Kf6 $1 {[%emt 0:01:20]} Rf4+ {[%emt 0:00:50]} 59. Kg6 {[%emt 0:00:05] Rg7+ would kill now.} ({Don't blunder} 59. Ke5 $2 h2 60. Kxf4 h1=Q $19) 59... h2 $2 {[%emt 0:00:48]} (59... Rf3 $18 60. Rd7 h2 61. Rg7+ Kf8) 60. Rg7+ $1 {[%emt 0:00:13]} ({Weaker is} 60. Rh7 Rf2 $11) 60... Kf8 {[%emt 0:00:11]} 61. Rh7 {[%emt 0:00:06]} Rf2 {[%emt 0:01:03]} 62. Rh8+ $1 {[%emt 0:02:08]} Ke7 {[%emt 0:00:01] [#]} 63. Rh3 $2 {[%emt 0:03:12]} (63. c6 $1 {mates} Rc2 64. Kg7 Rxc6 65. Rxh2 Rc3 66. g6 Rg3 67. Re2+ Kd7 68. Kf7) 63... Rc2 $2 {[%emt 0:01:47][%mdl 8192]} (63... Kf8 $11) 64. Kh7 {[%emt 0:00:48] White mates.} Rxc5 {[%emt 0:00:47]} 65. g6 {[%emt 0:00:06]} Kf6 {[%emt 0:01:39]} 66. Rxh2 {[%emt 0:00:34]} Rc7+ {[%emt 0:00:59]} 67. Kh6 {[%emt 0:00:15]} Rc3 {[%emt 0:00:20]} 68. Rf2+ {[%emt 0:00:45]} Ke7 {[%emt 0:00:06]} 69. Kg7 {[%emt 0:00:39]} Rg3 {[%emt 0:00:42]} 70. Re2+ {[%emt 0:00:03]} Kd8 {[%emt 0:00:22]} 71. Re5 {[%emt 0:00:11]} Kd7 {[%emt 0:00:16]} 72. Kf7 {[%emt 0:00:31]} Rf3+ {[%emt 0:00:11]} 73. Kg8 {[%emt 0:00:05]} Kd6 {[%emt 0:00:26]} 74. Re4 {[%emt 0:00:06]} Kd5 {[%emt 0:00:57]} 75. Re8 {[%emt 0:00:05]} Kd6 {[%emt 0:00:15]} 76. g7 {[%emt 0:00:03]} Ra3 {[%emt 0:01:07]} 77. Re4 {[%emt 0:00:30]} Kd7 {[%emt 0:00:40]} 78. Kf7 {[%emt 0:00:21]} Rf3+ {[%emt 0:00:11] [#]} 79. Kg6 $1 {[%emt 0:00:07]} Rg3+ {[%emt 0:00:08]} 80. Kf6 {[%emt 0:00:06]} Kd8 {[%emt 0:01:00]} 81. Re5 {[%emt 0:00:10]} Kd7 {[%emt 0:00:38]} 82. Rg5 {[%emt 0:00:09]} Rf3+ {[%emt 0:00:04]} 83. Kg6 {[%emt 0:00:06] Weighted Error Value: White=0.18 (very precise) /Black=0.40} 1-0